fUSD/lending_fUSD_20250525
["ID","MTS","AMOUNT","RATE_DAILY","PERIOD"]
[362350184,1748208672985,-422.8178642,0.00019999,2]
[362350185,1748208672994,-420.0,0.00019999,2]
[362350186,1748208673004,-491.99,0.00019999,2]
[362350187,1748208673013,-420.0,0.00019999,2]
[362350188,1748208673022,-420.0,0.00019999,2]
[362350189,1748208673031,-442.13,0.00019999,2]
[362350190,1748208673040,-420.0,0.00019999,2]
[362350191,1748208673049,-420.0,0.00019999,2]
[362350192,1748208673058,-420.0,0.00019999,2]
[362350193,1748208673067,-420.0,0.00019999,2]
[362350194,1748208673075,-420.0,0.00019999,2]
[362350195,1748208673084,-210.03,0.00019999,2]
[362350196,1748208673093,-233.83,0.00019999,2]
[362350197,1748208673102,-420.0,0.00019999,2]
[362350198,1748208673111,-314.07,0.00019999,2]
[362350199,1748208673121,-420.0,0.00019999,2]
[362350200,1748208673130,-206.46,0.00019999,2]
[362350201,1748208673139,-420.0,0.00019999,2]
[362350202,1748208673148,-420.0,0.00019999,2]
[362350203,1748208673158,-518.89,0.00019999,2]
[362350204,1748208673167,-420.0,0.00019999,2]
[362350205,1748208673176,-420.0,0.00019999,2]
[362350206,1748208673185,-420.0,0.00019999,2]
[362350207,1748208673194,-185.72,0.00019999,2]
[362350208,1748208673203,-421.21,0.00019999,2]
[362350209,1748208673213,-424.58,0.00019999,2]
[362350210,1748208673222,-420.0,0.00019999,2]
[362350211,1748208673232,-528.92,0.00019999,2]
[362350212,1748208673241,-420.0,0.00019999,2]
[362350213,1748208673251,-420.0,0.00019999,2]
[362350214,1748208673260,-420.0,0.00019999,2]
[362350215,1748208673269,-366.42,0.00019999,2]
[362350216,1748208673279,-420.0,0.00019999,2]
[362350217,1748208673289,-420.0,0.00019999,2]
[362350218,1748208673299,-549.29,0.00019999,2]
[362350219,1748208673308,-521.46,0.00019999,2]
[362350220,1748208673318,-342.46,0.00019999,2]
[362350221,1748208673328,-500.0,0.00019999,2]
[362350222,1748208673338,-500.0,0.00019999,2]
[362350223,1748208673347,-500.0,0.00019999,2]
[362350224,1748208673356,-500.0,0.00019999,2]
[362350225,1748208673366,-500.0,0.00019999,2]
[362350226,1748208673379,-500.0,0.00019999,2]
[362350227,1748208673390,-500.0,0.00019999,2]
[362350228,1748208673401,-324.85944831,0.00019999,2]
[362350229,1748208673411,-420.0,0.00019999,2]
[362350230,1748208673420,-218.78,0.00019999,2]
[362350231,1748208673429,-420.0,0.00019999,2]
[362350232,1748208673439,-216.39,0.00019999,2]
[362350233,1748208673448,-420.0,0.00019999,2]
[362350234,1748208673457,-216.84,0.00019999,2]
[362350235,1748208673467,-420.0,0.00019999,2]
[362350236,1748208673476,-420.0,0.00019999,2]
[362350237,1748208673487,-420.0,0.00019999,2]
[362350238,1748208673496,-420.0,0.00019999,2]
[362350239,1748208673506,-420.0,0.00019999,2]
[362350240,1748208673515,-420.0,0.00019999,2]
[362350241,1748208673524,-420.0,0.00019999,2]
[362350242,1748208673535,-420.0,0.00019999,2]
[362350243,1748208673544,-420.0,0.00019999,2]
[362350244,1748208673554,-420.0,0.00019999,2]
[362350245,1748208673563,-420.0,0.00019999,2]
[362350246,1748208673573,-420.0,0.00019999,2]
[362350247,1748208673583,-420.0,0.00019999,2]
[362350248,1748208673592,-420.0,0.00019999,2]
[362350249,1748208673601,-533.16,0.00019999,2]
[362350250,1748208673611,-314.1,0.00019999,2]
[362350251,1748208673621,-420.0,0.00019999,2]
[362350252,1748208673630,-420.0,0.00019999,2]
[362350253,1748208673640,-420.0,0.00019999,2]
[362350254,1748208673650,-544.45,0.00019999,2]
[362350255,1748208673659,-501.74,0.00019999,2]
[362350256,1748208673669,-420.0,0.00019999,2]
[362350257,1748208673679,-420.0,0.00019999,2]
[362350258,1748208673689,-197.28,0.00019999,2]
[362350259,1748208673699,-420.0,0.00019999,2]
[362350260,1748208673709,-420.0,0.00019999,2]
[362350261,1748208673719,-420.0,0.00019999,2]
[362350262,1748208673728,-420.0,0.00019999,2]
[362350263,1748208673738,-420.0,0.00019999,2]
[362350264,1748208673748,-420.0,0.00019999,2]
[362350265,1748208673759,-565.97,0.00019999,2]
[362350266,1748208673768,-420.0,0.00019999,2]
[362350267,1748208673778,-420.0,0.00019999,2]
[362350268,1748208673789,-420.0,0.00019999,2]
[362350269,1748208673799,-420.0,0.00019999,2]
[362350270,1748208673809,-387.79,0.00019999,2]
[362350271,1748208673819,-420.0,0.00019999,2]
[362350272,1748208673828,-420.0,0.00019999,2]
[362350273,1748208673839,-420.0,0.00019999,2]
[362350274,1748208673850,-469.63,0.00019999,2]
[362350275,1748208673861,-420.0,0.00019999,2]
[362350276,1748208673872,-420.0,0.00019999,2]
[362350277,1748208673882,-420.0,0.00019999,2]
[362350278,1748208673892,-420.0,0.00019999,2]
[362350279,1748208673901,-420.0,0.00019999,2]
[362350280,1748208673911,-420.0,0.00019999,2]
[362350281,1748208673921,-420.0,0.00019999,2]
[362350282,1748208673930,-420.0,0.00019999,2]
[362350283,1748208673941,-420.0,0.00019999,2]
[362350284,1748208673951,-420.0,0.00019999,2]
[362350285,1748208673960,-420.0,0.00019999,2]
[362350286,1748208673970,-420.0,0.00019999,2]
[362350287,1748208673979,-420.0,0.00019999,2]
[362350288,1748208673989,-420.0,0.00019999,2]
[362350289,1748208673998,-420.0,0.00019999,2]
[362350290,1748208674008,-420.0,0.00019999,2]
[362350291,1748208674017,-420.0,0.00019999,2]
[362350292,1748208674027,-420.0,0.00019999,2]
[362350293,1748208674036,-378.37,0.00019999,2]
[362350294,1748208674045,-511.58,0.00019999,2]
[362350295,1748208674055,-420.0,0.00019999,2]
[362350296,1748208674064,-420.0,0.00019999,2]
[362350297,1748208674074,-420.0,0.00019999,2]
[362350298,1748208674083,-420.0,0.00019999,2]
[362350299,1748208674092,-420.0,0.00019999,2]
[362350300,1748208674102,-420.0,0.00019999,2]
[362350301,1748208674111,-288.62,0.00019999,2]
[362350302,1748208674121,-420.0,0.00019999,2]
[362350303,1748208674130,-188.18,0.00019999,2]
[362350304,1748208674139,-420.0,0.00019999,2]
[362350305,1748208674148,-420.0,0.00019999,2]
[362350306,1748208674158,-209.23,0.00019999,2]
[362350307,1748208674168,-420.0,0.00019999,2]
[362350308,1748208674181,-345.85,0.00019999,2]
[362350309,1748208674192,-326.95,0.00019999,2]
[362350310,1748208674202,-420.0,0.00019999,2]
[362350311,1748208674212,-420.0,0.00019999,2]
[362350312,1748208674222,-269.21,0.00019999,2]
[362350313,1748208674232,-420.0,0.00019999,2]
[362350314,1748208674242,-420.0,0.00019999,2]
[362350315,1748208674251,-420.0,0.00019999,2]
[362350316,1748208674261,-420.0,0.00019999,2]
[362350317,1748208674270,-420.0,0.00019999,2]
[362350318,1748208674280,-420.0,0.00019999,2]
[362350319,1748208674290,-420.0,0.00019999,2]
[362350320,1748208674299,-420.0,0.00019999,2]
[362350321,1748208674311,-420.0,0.00019999,2]
[362350322,1748208674320,-420.0,0.00019999,2]
[362350323,1748208674329,-420.0,0.00019999,2]
[362350324,1748208674339,-483.09,0.00019999,2]
[362350325,1748208674349,-377.14,0.00019999,2]
[362350326,1748208674359,-266.5,0.00019999,2]
[362350327,1748208674371,-420.0,0.00019999,2]
[362350328,1748208674382,-420.0,0.00019999,2]
[362350329,1748208674392,-420.0,0.00019999,2]
[362350330,1748208674403,-420.0,0.00019999,2]
[362350331,1748208674415,-399.59,0.00019999,2]
[362350332,1748208674427,-234.36,0.00019999,2]
[362350333,1748208674436,-420.0,0.00019999,2]
[362350334,1748208674448,-420.0,0.00019999,2]
[362350335,1748208674457,-420.0,0.00019999,2]
[362350336,1748208674468,-250.63,0.00019999,2]
[362350337,1748208674478,-420.0,0.00019999,2]
[362350338,1748208674487,-420.0,0.00019999,2]
[362350339,1748208674497,-301.61,0.00019999,2]
[362350340,1748208674508,-420.0,0.00019999,2]
[362350341,1748208674519,-420.0,0.00019999,2]
[362350342,1748208674528,-420.0,0.00019999,2]
[362350343,1748208674538,-417.05,0.00019999,2]
[362350344,1748208674547,-568.45,0.00019999,2]
[362350345,1748208674556,-493.22,0.00019999,2]
[362350346,1748208674567,-493.22,0.00019999,2]
[362350347,1748208674577,-493.22,0.00019999,2]
[362350348,1748208674586,-493.22,0.00019999,2]
[362350349,1748208674596,-493.22,0.00019999,2]
[362350350,1748208674605,-493.22,0.00019999,2]
[362350351,1748208674616,-493.22,0.00019999,2]
[362350352,1748208674626,-493.22,0.00019999,2]
[362350353,1748208674636,-493.22,0.00019999,2]
[362350354,1748208674645,-234.49,0.00019999,2]
[362350355,1748208674655,-493.22,0.00019999,2]
[362350356,1748208674664,-493.22,0.00019999,2]
[362350357,1748208674674,-493.22,0.00019999,2]
[362350358,1748208674685,-493.22,0.00019999,2]
[362350359,1748208674695,-493.22,0.00019999,2]
[362350360,1748208674706,-493.22,0.00019999,2]
[362350361,1748208674717,-493.22,0.00019999,2]
[362350362,1748208674727,-493.22,0.00019999,2]
[362350363,1748208674737,-493.22,0.00019999,2]
[362350364,1748208674747,-493.43,0.00019999,2]
[362350365,1748208674758,-208.82,0.00019999,2]
[362350366,1748208674767,-519.12,0.00019999,2]
[362350367,1748208674778,-296.45,0.00019999,2]
[362350368,1748208674788,-420.0,0.00019999,2]
[362350369,1748208674910,-420.0,0.00019999,2]
[362350370,1748208674929,-420.0,0.00019999,2]
[362350371,1748208674939,-420.0,0.00019999,2]
[362350372,1748208674948,-420.0,0.00019999,2]
[362350373,1748208674959,-420.0,0.00019999,2]
[362350374,1748208674969,-420.0,0.00019999,2]
[362350375,1748208674978,-420.0,0.00019999,2]
[362350376,1748208674987,-420.0,0.00019999,2]
[362350377,1748208674996,-420.0,0.00019999,2]
[362350378,1748208675005,-525.16,0.00019999,2]
[362350379,1748208675014,-429.73,0.00019999,2]
[362350380,1748208675024,-420.0,0.00019999,2]
[362350381,1748208675033,-437.24,0.00019999,2]
[362350382,1748208675043,-420.0,0.00019999,2]
[362350383,1748208675052,-420.0,0.00019999,2]
[362350384,1748208675061,-420.0,0.00019999,2]
[362350385,1748208675071,-420.0,0.00019999,2]
[362350386,1748208675080,-420.0,0.00019999,2]
[362350387,1748208675089,-420.0,0.00019999,2]
[362350388,1748208675098,-420.0,0.00019999,2]
[362350389,1748208675107,-432.56,0.00019999,2]
[362350390,1748208675116,-420.0,0.00019999,2]
[362350391,1748208675125,-420.0,0.00019999,2]
[362350392,1748208675134,-230.82,0.00019999,2]
[362350393,1748208675143,-420.0,0.00019999,2]
[362350394,1748208675152,-380.84,0.00019999,2]
[362350395,1748208675161,-420.0,0.00019999,2]
[362350396,1748208675170,-420.0,0.00019999,2]
[362350397,1748208675179,-437.32,0.00019999,2]
[362350398,1748208675188,-420.0,0.00019999,2]
[362350399,1748208675198,-463.29,0.00019999,2]
[362350400,1748208675207,-448.43,0.00019999,2]
[362350401,1748208675216,-420.0,0.00019999,2]
[362350402,1748208675226,-420.0,0.00019999,2]
[362350403,1748208675235,-420.0,0.00019999,2]
[362350404,1748208675245,-420.0,0.00019999,2]
[362350405,1748208675254,-420.0,0.00019999,2]
[362350406,1748208675263,-420.0,0.00019999,2]
[362350407,1748208675272,-420.0,0.00019999,2]
[362350408,1748208675282,-83.29958717,0.00019999,2]
[362350409,1748208675538,-336.70041283,0.00019999,2]
[362350410,1748208675552,-420.0,0.00019999,2]
[362350411,1748208675562,-420.0,0.00019999,2]
[362350412,1748208675572,-420.0,0.00019999,2]
[362350413,1748208675582,-498.99,0.00019999,2]
[362350414,1748208675591,-420.0,0.00019999,2]
[362350415,1748208675600,-420.0,0.00019999,2]
[362350416,1748208675609,-420.0,0.00019999,2]
[362350417,1748208675619,-279.88,0.00019999,2]
[362350418,1748208675628,-483.4,0.00019999,2]
[362350419,1748208675638,-420.0,0.00019999,2]
[362350420,1748208675648,-420.0,0.00019999,2]
[362350421,1748208675657,-559.85,0.00019999,2]
[362350422,1748208675666,-420.0,0.00019999,2]
[362350423,1748208675676,-150.39,0.00019999,2]
[362350424,1748208675686,-150.87,0.00019999,2]
[362350425,1748208675695,-420.0,0.00019999,2]
[362350426,1748208675705,-420.0,0.00019999,2]
[362350427,1748208675714,-420.0,0.00019999,2]
[362350428,1748208675724,-420.0,0.00019999,2]
[362350429,1748208675734,-334.46,0.00019999,2]
[362350430,1748208675743,-420.0,0.00019999,2]
[362350431,1748208675753,-165.83,0.00019999,2]
[362350432,1748208675762,-318.66,0.00019999,2]
[362350433,1748208675772,-420.0,0.00019999,2]
[362350434,1748208675781,-420.0,0.00019999,2]
[362350435,1748208675791,-420.0,0.00019999,2]
[362350436,1748208675801,-420.0,0.00019999,2]
[362350437,1748208675810,-153.54,0.00019999,2]
[362350438,1748208675820,-420.0,0.00019999,2]
[362350439,1748208675830,-495.86,0.00019999,2]
[362350440,1748208675839,-420.0,0.00019999,2]
[362350441,1748208675849,-420.0,0.00019999,2]
[362350442,1748208675859,-420.0,0.00019999,2]
[362350443,1748208675868,-352.25,0.00019999,2]
[362350444,1748208675877,-420.0,0.00019999,2]
[362350445,1748208675886,-420.0,0.00019999,2]
[362350446,1748208675895,-420.0,0.00019999,2]
[362350447,1748208675904,-420.0,0.00019999,2]
[362350448,1748208675913,-420.0,0.00019999,2]
[362350449,1748208675922,-420.0,0.00019999,2]
[362350450,1748208675931,-420.0,0.00019999,2]
[362350451,1748208675941,-420.0,0.00019999,2]
[362350452,1748208675950,-420.0,0.00019999,2]
[362350453,1748208675959,-420.0,0.00019999,2]
[362350454,1748208675969,-318.2146711,0.00019999,2]
[362350455,1748208675979,-439.6087,0.00019999,2]
[362350456,1748208675988,-500.0,0.00019999,2]
[362350457,1748208675997,-500.0,0.00019999,2]
[362350458,1748208676007,-500.0,0.00019999,2]
[362350459,1748208676016,-208.55545358,0.00019999,2]
[362350460,1748208676030,-291.44454642,0.00019999,2]
[362350461,1748208676039,-500.0,0.00019999,2]
[362350462,1748208676048,-500.0,0.00019999,2]
[362350463,1748208676058,-187.39963217,0.00019999,2]
[362350464,1748208676067,-151.81,0.00019999,2]
[362350465,1748208676076,-200.0,0.00019999,2]
[362350466,1748208676086,-389.24,0.00019999,2]
[362350467,1748208676095,-105.10582191,0.00019999,2]
[362350468,1748208676107,-394.89417809,0.00019999,2]
[362350469,1748208676116,-154.23,0.00019999,2]
[362350470,1748208676126,-500.0,0.00019999,2]
[362350471,1748208676135,-150.0,0.00019999,2]
[362350472,1748208676145,-500.0,0.00019999,2]
[362350473,1748208676154,-6.43409511,0.00019999,2]
[362350474,1748208676165,-493.56590489,0.00019999,2]
[362350475,1748208676175,-80.94982323,0.00019999,2]
[362350476,1748208676186,-289.15000193,0.00019999,2]
[362350477,1748208676197,-129.90017484,0.00019999,2]
[362350478,1748208676206,-500.0,0.00019999,2]
[362350479,1748208676216,-419.51401521,0.00019999,2]
[362350480,1748208676227,-183.09408964,0.00019999,2]
[362350481,1748208676236,-420.0,0.00019999,2]
[362350482,1748208676245,-420.0,0.00019999,2]
[362350483,1748208676255,-152.58027303,0.00019999,2]
[362350484,1748208676264,-420.0,0.00019999,2]
[362350485,1748208676273,-90.09685637,0.00019999,2]
[362350486,1748208676286,-329.90314363,0.00019999,2]
[362350487,1748208676295,-346.63,0.00019999,2]
[362350488,1748208676304,-330.98997733,0.00019999,2]
[362350489,1748208676390,-420.0,0.00019917,2]
[362350490,1748208676399,-89.01002267,0.00019999,2]
[362350491,1748208676408,-420.0,0.00019999,2]
[362350492,1748208676418,-210.15990722,0.00019999,2]
[362350493,1748208676427,-420.0,0.00019999,2]
[362350494,1748208676436,-420.0,0.00019999,2]
[362350495,1748208676446,-322.07465641,0.00019999,2]
[362350496,1748208676456,-420.0,0.00019999,2]
[362350497,1748208676465,-420.0,0.00019999,2]
[362350498,1748208676475,-420.0,0.00019999,2]
[362350499,1748208676484,-420.0,0.00019999,2]
[362350500,1748208676493,-420.0,0.00019999,2]
[362350501,1748208676503,-340.42,0.00019999,2]
[362350502,1748208676512,-150.0,0.00019999,2]
[362350503,1748208676521,-420.0,0.00019999,2]
[362350504,1748208676531,-420.0,0.00019999,2]
[362350505,1748208676540,-482.09644996,0.00019999,2]
[362350506,1748208676550,-420.0,0.00019999,2]
[362350507,1748208676560,-420.0,0.00019999,2]
[362350508,1748208676569,-374.2,0.00019999,2]
[362350509,1748208676579,-483.72444034,0.00019999,2]
[362350510,1748208676588,-420.0,0.00019999,2]
[362350511,1748208676597,-420.0,0.00019999,2]
[362350512,1748208676606,-216.46,0.00019999,2]
[362350513,1748208676615,-342.11,0.00019999,2]
[362350514,1748208676625,-459.9,0.00019999,2]
[362350515,1748208676634,-420.0,0.00019999,2]
[362350516,1748208676643,-525.67,0.00019999,2]
[362350517,1748208676652,-420.0,0.00019999,2]
[362350518,1748208676661,-420.0,0.00019999,2]
[362350519,1748208676670,-420.0,0.00019999,2]
[362350520,1748208676826,-420.0,0.00019999,2]
[362350521,1748208676835,-420.0,0.00019999,2]
[362350522,1748208676845,-420.0,0.00019999,2]
[362350523,1748208676854,-420.0,0.00019999,2]
[362350524,1748208676863,-420.0,0.00019999,2]
[362350525,1748208676872,-420.0,0.00019999,2]
[362350526,1748208676882,-420.0,0.00019999,2]
[362350527,1748208676891,-420.0,0.00019999,2]
[362350528,1748208676900,-420.0,0.00019999,2]
[362350529,1748208676910,-420.0,0.00019999,2]
[362350530,1748208676919,-420.0,0.00019999,2]
[362350531,1748208676928,-420.0,0.00019999,2]
[362350532,1748208676938,-322.02,0.00019999,2]
[362350533,1748208676947,-420.0,0.00019999,2]
[362350534,1748208676956,-530.02,0.00019999,2]
[362350535,1748208676966,-385.2,0.00019999,2]
[362350536,1748208676975,-2020.15,0.00019999,2]
[362350537,1748208676984,-2020.15,0.00019999,2]
[362350538,1748208676993,-2020.15,0.00019999,2]
[362350539,1748208677003,-2020.15,0.00019999,2]
[362350540,1748208677012,-2020.15,0.00019999,2]
[362350541,1748208677021,-2020.15,0.00019999,2]
[362350542,1748208677031,-2020.15,0.00019999,2]
[362350543,1748208677041,-561.43,0.00019999,2]
[362350544,1748208677049,-2020.15,0.00019999,2]
[362350545,1748208677059,-2020.15,0.00019999,2]
[362350546,1748208677068,-2020.15,0.00019999,2]
[362350547,1748208677077,-2020.15,0.00019999,2]
[362350548,1748208677086,-1066.45182473,0.00019999,2]
[362350549,1748208677120,-953.69817527,0.00019999,2]
[362350550,1748208677130,-420.0,0.00019999,2]
[362350551,1748208677139,-2020.15,0.00019999,2]
[362350552,1748208677148,-420.0,0.00019999,2]
[362350553,1748208677158,-2020.15,0.00019999,2]
[362350554,1748208677167,-420.0,0.00019999,2]
[362350555,1748208677176,-2020.15,0.00019999,2]
[362350556,1748208677185,-2020.15,0.00019999,2]
[362350557,1748208677194,-2020.15,0.00019999,2]
[362350558,1748208677204,-2020.15,0.00019999,2]
[362350559,1748208677213,-2020.15,0.00019999,2]
[362350560,1748208677223,-2020.15,0.00019999,2]
[362350561,1748208677232,-2020.33,0.00019999,2]
[362350562,1748208677242,-344.98,0.00019999,2]
[362350563,1748208677252,-420.0,0.00019999,2]
[362350564,1748208677262,-420.0,0.00019999,2]
[362350565,1748208677272,-420.0,0.00019999,2]
[362350566,1748208677282,-420.0,0.00019999,2]
[362350567,1748208677291,-420.0,0.00019999,2]
[362350568,1748208677300,-420.0,0.00019999,2]
[362350569,1748208677309,-420.0,0.00019999,2]
[362350570,1748208677318,-420.0,0.00019999,2]
[362350571,1748208677328,-420.0,0.00019999,2]
[362350572,1748208677337,-420.0,0.00019999,2]
[362350573,1748208677347,-288.0,0.00019999,2]
[362350574,1748208677356,-457.66,0.00019999,2]
[362350575,1748208677366,-420.0,0.00019999,2]
[362350576,1748208677379,-420.0,0.00019999,2]
[362350577,1748208677389,-217.14,0.00019999,2]
[362350578,1748208677398,-420.0,0.00019999,2]
[362350579,1748208677408,-119.12642547,0.00019999,2]
[362350585,1748208986076,292.36,0.00013699,2]
[362350591,1748209071239,-340.15904522,0.00016467,2]
[362350592,1748209077113,-152.92103485,0.00016467,2]
[362350593,1748209079079,-199.75520218,0.00016467,2]
[362350594,1748209081183,-258.75873228,0.00016467,2]
[362350595,1748209083461,-217.2626987,0.00016467,2]
[362350596,1748209086133,-238.52862141,0.00016467,2]
[362350597,1748209088769,-123.54466536,0.00016467,2]
[362350608,1748209409216,7145.84,0.00027397,120]
[362350609,1748209451621,203.0,0.0001559,2]
[362350611,1748209520816,250.0,0.00015,2]
[362350612,1748209522598,-286.49966863,0.00017,2]
[362350614,1748209525136,-13.50033137,0.00017,2]
[362350621,1748209832306,-203.0,0.00017551,2]
[362350622,1748209832316,-261.9198979,0.00017795,2]
[362350623,1748209832325,-364.584359,0.00018,2]
[362350624,1748209832335,-315.53,0.00018171,2]
[362350625,1748209832344,-984.9786,0.00018217,2]
[362350626,1748209832354,-168.91,0.00018246,2]
[362350627,1748209832363,-173.69,0.00018247,2]
[362350628,1748209832372,-3076.87,0.00018251,2]
[362350629,1748209832381,-200.0,0.00018252,2]
[362350630,1748209832390,-200.9,0.00018317,2]
[362350631,1748209832399,-1185.77,0.00018325,2]
[362350632,1748209832409,-1200.0,0.00018328,2]
[362350633,1748209832418,-2032.51,0.00018329,2]
[362350634,1748209832427,-157.88,0.00018339,2]
[362350635,1748209832436,-1000.0,0.0001844,2]
[362350636,1748209832445,-250.0,0.00018446,2]
[362350637,1748209832454,-242.37,0.00018452,2]
[362350638,1748209832464,-200.0,0.00018482,2]
[362350639,1748209832473,-183.76,0.00018484,2]
[362350640,1748209832483,-3475.6917881,0.00018505,2]
[362350641,1748209832498,-1499.21515664,0.00018505,2]
[362350642,1748209832544,-18925.09305526,0.00018505,2]
[362350643,1748209832554,-162.27,0.00018513,2]
[362350644,1748209832563,-1683.52,0.00018672,2]
[362350645,1748209832572,-311.2,0.00018702,2]
[362350646,1748209832582,-150.0,0.00018731,2]
[362350647,1748209832591,-1530.93,0.00018731,2]
[362350648,1748209832601,-162.97,0.00018775,2]
[362350649,1748209832610,-464.82388161,0.00018783,2]
[362350650,1748209832619,-166.68,0.00018822,2]
[362350651,1748209832629,-5307.5955,0.000189,2]
[362350652,1748209832638,-1509.888,0.000189,2]
[362350653,1748209832647,-150.0,0.00018924,2]
[362350654,1748209832656,-500.0,0.00018973,2]
[362350655,1748209832665,-363.92,0.00018973,2]
[362350656,1748209832674,-233.63,0.00018982,2]
[362350657,1748209832683,-207.4,0.00018999,2]
[362350658,1748209832692,-151.0,0.00018999,2]
[362350659,1748209832701,-25509.54,0.00019,2]
[362350660,1748209832710,-25509.54,0.00019,2]
[362350661,1748209832719,-25509.54,0.00019,2]
[362350662,1748209832728,-25509.54,0.00019,2]
[362350663,1748209832737,-25509.54,0.00019,2]
[362350664,1748209832746,-320.69334249,0.00019,2]
[362350665,1748209832755,-350.0,0.00019,2]
[362350666,1748209832764,-210.71,0.00019178,2]
[362350668,1748209832773,-200.0,0.00019349,2]
[362350669,1748209832783,-1000.0,0.00019521,2]
[362350672,1748209832792,-162.97,0.00019549,2]
[362350674,1748209832803,-200.0,0.00019575,2]
[362350676,1748209832812,-200.0,0.00019575,2]
[362350678,1748209832821,-717.597105,0.00019599,2]
[362350680,1748209832830,-300.0,0.000196,2]
[362350682,1748209832839,-150.46,0.00019726,2]
[362350683,1748209832849,-150.46,0.00019726,2]
[362350685,1748209832859,-150.46,0.00019726,2]
[362350687,1748209832868,-150.46,0.00019726,2]
[362350689,1748209832878,-299.78,0.00019726,2]
[362350691,1748209832888,-453.63,0.00019726,2]
[362350693,1748209832898,-453.63,0.00019726,2]
[362350695,1748209832907,-452.9,0.00019726,2]
[362350697,1748209832916,-9923.47696208,0.000198,2]
[362350700,1748209832926,-500.0,0.000198,2]
[362350703,1748209832935,-222.23194834,0.00019817,2]
[362350706,1748209832944,-200.0,0.0001984,2]
[362350708,1748209832953,-500.0,0.00019873,2]
[362350710,1748209832962,-500.0,0.00019873,2]
[362350712,1748209832972,-229.51079889,0.00019873,2]
[362350714,1748209832982,-500.0,0.00019873,2]
[362350716,1748209832991,-151.83677407,0.0001989,2]
[362350718,1748209833001,-500.0,0.0001989,2]
[362350720,1748209833010,-151.24153925,0.0001989,2]
[362350722,1748209833019,-500.0,0.0001989,2]
[362350724,1748209833028,-500.0,0.0001989,2]
[362350726,1748209833037,-253.85989619,0.0001989,2]
[362350728,1748209833047,-500.0,0.0001989,2]
[362350730,1748209833056,-500.0,0.0001989,2]
[362350732,1748209833066,-500.0,0.0001989,2]
[362350733,1748209833075,-500.0,0.0001989,2]
[362350735,1748209833085,-500.0,0.0001989,2]
[362350736,1748209833094,-550.0,0.0001989,2]
[362350738,1748209833108,-420.0,0.00019895,2]
[362350740,1748209833118,-420.0,0.00019895,2]
[362350742,1748209833126,-419.91713567,0.00019895,2]
[362350744,1748209833136,-420.0,0.00019895,2]
[362350746,1748209833146,-420.0,0.00019895,2]
[362350748,1748209833158,-185.72,0.00019895,2]
[362350750,1748209833167,-420.0,0.00019895,2]
[362350752,1748209833177,-420.0,0.00019895,2]
[362350753,1748209833186,-420.0,0.00019895,2]
[362350755,1748209833196,-420.0,0.00019895,2]